[Event "Late-Titled-Tuesday-Blitz-March-26-2024"]
[Site "Chess.com"]
[Date "2024.03.26"]
[Round "8"]
[White "leandrojimenez"]
[Black "Mikhail_Golubev"]
[Result "0-1"]
[WhiteElo "2429"]
[BlackElo "2644"]
[TimeControl "180+1"]
[EndTime "15:28:15 PDT"]
[Termination "Mikhail_Golubev won by resignation"]

1. d4 {[%clk 0:02:49.7]} 1... Nf6 {[%clk 0:02:58.3]} 2. c4 {[%clk 0:02:44.1]}
2... g6 {[%clk 0:02:57.9]} 3. Nc3 {[%clk 0:02:43.6]} 3... Bg7 {[%clk 0:02:57]}
4. e4 {[%clk 0:02:43.9]} 4... d6 {[%clk 0:02:57.3]} 5. f3 {[%clk 0:02:44.3]}
5... O-O {[%clk 0:02:57.4]} 6. Be3 {[%clk 0:02:44.9]} 6... a6 {[%clk 0:02:57.5]}
7. Qd2 {[%clk 0:02:43.5]} 7... Nbd7 {[%clk 0:02:56.8]} 8. Nge2 {[%clk
0:02:43.3]} 8... b5 {[%clk 0:02:52.4]} 9. cxb5 {[%clk 0:02:39.1]} 9... axb5
{[%clk 0:02:53.2]} 10. Nxb5 {[%clk 0:02:39.8]} 10... c6 {[%clk 0:02:52.1]} 11.
Nbc3 {[%clk 0:02:38.8]} 11... e5 {[%clk 0:02:50.7]} 12. d5 {[%clk 0:02:24.1]}
12... Nb6 {[%clk 0:02:49.3]} 13. Ng3 {[%clk 0:02:07.8]} 13... cxd5 {[%clk
0:02:41]} 14. exd5 {[%clk 0:02:07.6]} 14... Bb7 {[%clk 0:02:31.5]} 15. Bg5
{[%clk 0:01:48.1]} 15... Qc7 {[%clk 0:01:32.2]} 16. Rc1 {[%clk 0:01:47.2]} 16...
Rfc8 {[%clk 0:01:26.7]} 17. Bxf6 {[%clk 0:00:53.4]} 17... Bxf6 {[%clk
0:01:25.8]} 18. Nge4 {[%clk 0:00:54]} 18... Be7 {[%clk 0:01:20.4]} 19. Rd1
{[%clk 0:00:39.4]} 19... f5 {[%clk 0:00:56.6]} 20. Ng5 {[%clk 0:00:33]} 20...
Bxg5 {[%clk 0:00:24.8]} 21. Qxg5 {[%clk 0:00:33.9]} 21... e4 {[%clk 0:00:21.9]}
22. fxe4 {[%clk 0:00:26.8]} 22... fxe4 {[%clk 0:00:19.7]} 23. Be2 {[%clk
0:00:24.6]} 23... Rf8 {[%clk 0:00:17.5]} 24. h4 {[%clk 0:00:16.9]} 24... Rf5
{[%clk 0:00:16.9]} 25. Qg3 {[%clk 0:00:14.5]} 25... Nxd5 {[%clk 0:00:16.4]} 26.
h5 {[%clk 0:00:11.5]} 26... Nf4 {[%clk 0:00:14.3]} 27. hxg6 {[%clk 0:00:10.5]}
27... hxg6 {[%clk 0:00:13.6]} 28. Qh4 {[%clk 0:00:09]} 28... Qg7 {[%clk
0:00:12]} 29. Qg3 {[%clk 0:00:06.7]} 29... d5 {[%clk 0:00:06.5]} 30. Bg4 {[%clk
0:00:06.1]} 30... Rf6 {[%clk 0:00:02.7]} 31. a3 {[%clk 0:00:04.6]} 31... Raf8
{[%clk 0:00:01.6]} 32. O-O {[%clk 0:00:02.5]} 32... Nd3 {[%clk 0:00:02.2]} 33.
Rxf6 {[%clk 0:00:02]} 33... Qxf6 {[%clk 0:00:02.6]} 34. Be2 {[%clk 0:00:02.7]}
34... Qd4+ {[%clk 0:00:02.5]} 35. Kh2 {[%clk 0:00:02.6]} 35... Kg7 {[%clk
0:00:03]} 36. Qh3 {[%clk 0:00:02]} 36... Rh8 {[%clk 0:00:03]} 37. Bxd3 {[%clk
0:00:02.2]} 37... Rxh3+ {[%clk 0:00:02.6]} 38. Kxh3 {[%clk 0:00:03.1]} 38...
exd3 {[%clk 0:00:03]} 39. Kh2 {[%clk 0:00:04]} 39... Qe5+ {[%clk 0:00:03.3]} 40.
g3 {[%clk 0:00:04]} 40... Qe3 {[%clk 0:00:04.1]} 41. Kg2 {[%clk 0:00:04.1]}
41... d2 {[%clk 0:00:04.3]} 42. Nb5 {[%clk 0:00:02.1]} 42... Qe2+ {[%clk
0:00:04.2]} 43. Kh3 {[%clk 0:00:03]} 43... Qxd1 {[%clk 0:00:04.9]} 0-1

[Event "Late-Titled-Tuesday-Blitz-March-26-2024"]
[Site "Chess.com"]
[Date "2024.03.26"]
[Round "8"]
[White "ChessQueen"]
[Black "steepedgames"]
[Result "1/2-1/2"]
[WhiteElo "2683"]
[BlackElo "2531"]
[TimeControl "180+1"]
[EndTime "15:28:16 PDT"]
[Termination "Game drawn by repetition"]

1. e4 {[%clk 0:03:00.9]} 1... e6 {[%clk 0:02:56.3]} 2. d4 {[%clk 0:03:00.6]}
2... d5 {[%clk 0:02:56.5]} 3. exd5 {[%clk 0:03:01.3]} 3... exd5 {[%clk
0:02:56.5]} 4. Nf3 {[%clk 0:03:02.2]} 4... Bd6 {[%clk 0:02:56.8]} 5. c4 {[%clk
0:03:02.1]} 5... dxc4 {[%clk 0:02:55.8]} 6. Bxc4 {[%clk 0:03:01.7]} 6... Ne7
{[%clk 0:02:56.3]} 7. O-O {[%clk 0:03:00.8]} 7... O-O {[%clk 0:02:56.7]} 8. Nc3
{[%clk 0:03:01.2]} 8... Nbc6 {[%clk 0:02:53.7]} 9. Ne4 {[%clk 0:02:57.4]} 9...
Bf5 {[%clk 0:02:49.2]} 10. Re1 {[%clk 0:02:54.2]} 10... Qd7 {[%clk 0:02:41.6]}
11. Bb5 {[%clk 0:02:49.6]} 11... a6 {[%clk 0:02:27.9]} 12. Ba4 {[%clk
0:02:46.5]} 12... Rad8 {[%clk 0:02:20.9]} 13. Ng3 {[%clk 0:02:34.3]} 13... Bxg3
{[%clk 0:02:17.6]} 14. hxg3 {[%clk 0:02:33.4]} 14... Nd5 {[%clk 0:02:04.6]} 15.
Bg5 {[%clk 0:02:30.8]} 15... f6 {[%clk 0:01:54.7]} 16. Bd2 {[%clk 0:02:30.6]}
16... Kh8 {[%clk 0:01:45.7]} 17. Rc1 {[%clk 0:02:28.7]} 17... b5 {[%clk
0:01:45.5]} 18. Bb3 {[%clk 0:02:25.2]} 18... Nb6 {[%clk 0:01:44]} 19. Bf4 {[%clk
0:02:21.5]} 19... Nd5 {[%clk 0:01:19]} 20. Bxd5 {[%clk 0:02:13.2]} 20... Qxd5
{[%clk 0:01:19.9]} 21. Rc5 {[%clk 0:02:12.7]} 21... Qxc5 {[%clk 0:01:04.6]} 22.
dxc5 {[%clk 0:02:12.1]} 22... Rxd1 {[%clk 0:01:05.5]} 23. Rxd1 {[%clk
0:02:12.7]} 23... Rc8 {[%clk 0:01:00.1]} 24. a3 {[%clk 0:02:07.1]} 24... g5
{[%clk 0:00:56.2]} 25. Be3 {[%clk 0:02:04]} 25... Rd8 {[%clk 0:00:48.9]} 26.
Rxd8+ {[%clk 0:02:02.8]} 26... Nxd8 {[%clk 0:00:49.8]} 27. Bd4 {[%clk
0:02:02.9]} 27... Kg7 {[%clk 0:00:45.1]} 28. Nxg5 {[%clk 0:02:01.2]} 28... Nc6
{[%clk 0:00:42.2]} 29. Bc3 {[%clk 0:01:59.8]} 29... b4 {[%clk 0:00:39.2]} 30.
axb4 {[%clk 0:01:59.5]} 30... Nxb4 {[%clk 0:00:39.5]} 31. g4 {[%clk 0:01:53.8]}
31... Bxg4 {[%clk 0:00:31.8]} 32. Ne4 {[%clk 0:01:53.6]} 32... Nd5 {[%clk
0:00:31.7]} 33. Bd4 {[%clk 0:01:52.9]} 33... Bf5 {[%clk 0:00:31.3]} 34. Ng3
{[%clk 0:01:51]} 34... Bg6 {[%clk 0:00:31.2]} 35. f3 {[%clk 0:01:49.6]} 35...
Kf7 {[%clk 0:00:29.8]} 36. Kf2 {[%clk 0:01:49.6]} 36... Ke6 {[%clk 0:00:29.1]}
37. Ne2 {[%clk 0:01:47.2]} 37... Bd3 {[%clk 0:00:29]} 38. Nc1 {[%clk 0:01:44.9]}
38... Bg6 {[%clk 0:00:27.1]} 39. g3 {[%clk 0:01:40.3]} 39... h5 {[%clk
0:00:27.1]} 40. Ne2 {[%clk 0:01:33.2]} 40... Bd3 {[%clk 0:00:26.8]} 41. Nc1
{[%clk 0:01:29.8]} 41... Bg6 {[%clk 0:00:26.8]} 42. Ke2 {[%clk 0:01:30.1]} 42...
Bc2 {[%clk 0:00:25.9]} 43. Kd2 {[%clk 0:01:29.5]} 43... Bg6 {[%clk 0:00:25.2]}
44. Ne2 {[%clk 0:01:29.4]} 44... Kf5 {[%clk 0:00:18.5]} 45. b3 {[%clk
0:01:27.7]} 45... Ke6 {[%clk 0:00:18.3]} 46. Bb2 {[%clk 0:01:27.5]} 46... c6
{[%clk 0:00:18.2]} 47. Nd4+ {[%clk 0:01:26.4]} 47... Kd7 {[%clk 0:00:18.6]} 48.
Ke2 {[%clk 0:01:12.7]} 48... Bh7 {[%clk 0:00:18.6]} 49. Kf2 {[%clk 0:01:11.8]}
49... Bg6 {[%clk 0:00:18.5]} 50. Ne2 {[%clk 0:01:09]} 50... Ke6 {[%clk
0:00:17.8]} 51. Bd4 {[%clk 0:00:58.8]} 51... Bc2 {[%clk 0:00:16.7]} 52. Nc1
{[%clk 0:00:57.4]} 52... Nb4 {[%clk 0:00:14.3]} 53. Ke3 {[%clk 0:00:56.2]} 53...
Bg6 {[%clk 0:00:11.1]} 54. Kd2 {[%clk 0:00:53.8]} 54... Nd5 {[%clk 0:00:08.7]}
55. Na2 {[%clk 0:00:53.4]} 55... Bf5 {[%clk 0:00:08.3]} 56. b4 {[%clk
0:00:48.7]} 56... Bh3 {[%clk 0:00:08.1]} 57. Kc1 {[%clk 0:00:48.3]} 57... Bg2
{[%clk 0:00:07.7]} 58. f4 {[%clk 0:00:48.2]} 58... Kf5 {[%clk 0:00:07.9]} 59.
Kb2 {[%clk 0:00:46.8]} 59... Kg4 {[%clk 0:00:08.3]} 60. Bf2 {[%clk 0:00:46.6]}
60... Kf3 {[%clk 0:00:08.8]} 61. Be1 {[%clk 0:00:47]} 61... Ke2 {[%clk
0:00:09.3]} 62. Bc3 {[%clk 0:00:47.3]} 62... Kf3 {[%clk 0:00:06.8]} 63. Be1
{[%clk 0:00:47.1]} 63... Ke2 {[%clk 0:00:07]} 64. Bc3 {[%clk 0:00:47.4]} 64...
Kf3 {[%clk 0:00:07.4]} 65. Be1 {[%clk 0:00:46.2]} 1/2-1/2

[Event "Late-Titled-Tuesday-Blitz-March-26-2024"]
[Site "Chess.com"]
[Date "2024.03.26"]
[Round "8"]
[White "sergiochess83"]
[Black "DanielDardha2005"]
[Result "1-0"]
[WhiteElo "2997"]
[BlackElo "2873"]
[TimeControl "180+1"]
[EndTime "15:28:19 PDT"]
[Termination "sergiochess83 won by resignation"]

1. d4 {[%clk 0:02:53.5]} 1... Nf6 {[%clk 0:02:58.9]} 2. c4 {[%clk 0:02:52.9]}
2... e6 {[%clk 0:02:59]} 3. Nf3 {[%clk 0:02:52]} 3... h6 {[%clk 0:02:59.2]} 4.
g3 {[%clk 0:02:38.6]} 4... Bb4+ {[%clk 0:02:57.7]} 5. Bd2 {[%clk 0:02:36.8]}
5... Be7 {[%clk 0:02:56.5]} 6. Bg2 {[%clk 0:02:31.5]} 6... d5 {[%clk 0:02:56.8]}
7. O-O {[%clk 0:02:31.2]} 7... O-O {[%clk 0:02:56.9]} 8. b3 {[%clk 0:02:20.1]}
8... a5 {[%clk 0:02:55.9]} 9. Nc3 {[%clk 0:02:17.7]} 9... b6 {[%clk 0:02:36]}
10. Bf4 {[%clk 0:02:16.9]} 10... Bb7 {[%clk 0:02:35]} 11. cxd5 {[%clk
0:02:09.8]} 11... exd5 {[%clk 0:02:30]} 12. Ne5 {[%clk 0:02:04]} 12... Re8
{[%clk 0:02:23.7]} 13. Qc2 {[%clk 0:01:52.1]} 13... Na6 {[%clk 0:02:10.1]} 14.
Rad1 {[%clk 0:01:51.9]} 14... c6 {[%clk 0:02:08.2]} 15. Qb1 {[%clk 0:01:29]}
15... Nc7 {[%clk 0:02:03.5]} 16. Bh3 {[%clk 0:01:26.4]} 16... Ne6 {[%clk
0:01:56.6]} 17. Bxe6 {[%clk 0:01:25.2]} 17... fxe6 {[%clk 0:01:57.5]} 18. Bxh6
{[%clk 0:01:24.9]} 18... Bf8 {[%clk 0:01:23.5]} 19. Bg5 {[%clk 0:01:25]} 19...
Qc7 {[%clk 0:01:17.6]} 20. h4 {[%clk 0:01:21.4]} 20... Nh7 {[%clk 0:01:16.2]}
21. Bf4 {[%clk 0:01:20.9]} 21... Qd8 {[%clk 0:01:13.2]} 22. Qg6 {[%clk
0:01:11.4]} 22... Qf6 {[%clk 0:01:02.1]} 23. Na4 {[%clk 0:01:11.3]} 23... c5
{[%clk 0:00:41.9]} 24. Nxb6 {[%clk 0:01:05.2]} 24... Rad8 {[%clk 0:00:41.5]} 25.
Qd3 {[%clk 0:00:53.9]} 25... cxd4 {[%clk 0:00:23.3]} 26. Nbd7 {[%clk 0:00:53.2]}
26... Qe7 {[%clk 0:00:17.1]} 27. Nxf8 {[%clk 0:00:49]} 27... Qxf8 {[%clk
0:00:16.5]} 28. Qxd4 {[%clk 0:00:47.8]} 28... Ba6 {[%clk 0:00:17]} 29. Rfe1
{[%clk 0:00:44.6]} 29... Nf6 {[%clk 0:00:14]} 30. Rc1 {[%clk 0:00:42.7]} 30...
Rc8 {[%clk 0:00:13.7]} 31. f3 {[%clk 0:00:34.5]} 31... Rxc1 {[%clk 0:00:09.8]}
32. Rxc1 {[%clk 0:00:32.3]} 32... Bxe2 {[%clk 0:00:09.3]} 33. Rc7 {[%clk
0:00:31.7]} 33... Kh7 {[%clk 0:00:03]} 34. Bg5 {[%clk 0:00:26.8]} 34... Re7
{[%clk 0:00:02.9]} 35. Rc2 {[%clk 0:00:18.4]} 35... Bb5 {[%clk 0:00:02.5]} 36.
Qf4 {[%clk 0:00:13.8]} 36... Kg8 {[%clk 0:00:02.4]} 37. Ng4 {[%clk 0:00:11.6]}
37... Rf7 {[%clk 0:00:01.2]} 38. Bxf6 {[%clk 0:00:11.2]} 38... gxf6 {[%clk
0:00:01.6]} 39. Nh6+ {[%clk 0:00:11.4]} 39... Kh7 {[%clk 0:00:02.3]} 40. Nxf7
{[%clk 0:00:11.5]} 40... Qxf7 {[%clk 0:00:03.2]} 41. Rc7 {[%clk 0:00:11.2]}
41... Bd7 {[%clk 0:00:02.9]} 42. Qd6 {[%clk 0:00:11.5]} 42... Qg6 {[%clk
0:00:01.7]} 43. Rxd7+ {[%clk 0:00:11.5]} 43... Kh6 {[%clk 0:00:01.8]} 44. Qf4+
{[%clk 0:00:11.6]} 44... Kh5 {[%clk 0:00:02.3]} 45. g4+ {[%clk 0:00:10.7]} 45...
Kxh4 {[%clk 0:00:03]} 46. Rh7+ {[%clk 0:00:10.6]} 46... Qxh7 {[%clk 0:00:01.7]}
47. Qh2+ {[%clk 0:00:10.7]} 1-0

[Event "Late-Titled-Tuesday-Blitz-March-26-2024"]
[Site "Chess.com"]
[Date "2024.03.26"]
[Round "8"]
[White "jinbojinbo"]
[Black "carokannlover213"]
[Result "0-1"]
[WhiteElo "2643"]
[BlackElo "2834"]
[TimeControl "180+1"]
[EndTime "15:28:22 PDT"]
[Termination "carokannlover213 won on time"]

1. e4 {[%clk 0:03:00.9]} 1... c6 {[%clk 0:03:00.7]} 2. d4 {[%clk 0:02:59.8]}
2... d5 {[%clk 0:03:01.2]} 3. exd5 {[%clk 0:03:00.1]} 3... cxd5 {[%clk
0:03:01.2]} 4. Bd3 {[%clk 0:03:00.5]} 4... Nc6 {[%clk 0:03:01.2]} 5. c3 {[%clk
0:03:00.5]} 5... Qc7 {[%clk 0:03:01.2]} 6. Ne2 {[%clk 0:02:59.3]} 6... e5 {[%clk
0:03:00.5]} 7. dxe5 {[%clk 0:02:56.5]} 7... Nxe5 {[%clk 0:03:01.4]} 8. Bc2
{[%clk 0:02:53.5]} 8... Nf6 {[%clk 0:03:01.2]} 9. Bf4 {[%clk 0:02:48.2]} 9...
Bd6 {[%clk 0:02:58.8]} 10. Bg3 {[%clk 0:02:48.3]} 10... O-O {[%clk 0:02:58.2]}
11. O-O {[%clk 0:02:48.1]} 11... Bg4 {[%clk 0:02:57.1]} 12. h3 {[%clk
0:02:32.1]} 12... Bh5 {[%clk 0:02:49.4]} 13. Re1 {[%clk 0:02:28.7]} 13... Rfe8
{[%clk 0:02:47.7]} 14. Nd2 {[%clk 0:02:22.2]} 14... Rad8 {[%clk 0:02:37.4]} 15.
Nb3 {[%clk 0:01:54.5]} 15... Nc4 {[%clk 0:02:37.1]} 16. Bxd6 {[%clk 0:01:54.5]}
16... Rxd6 {[%clk 0:02:38]} 17. Rb1 {[%clk 0:01:52]} 17... Rde6 {[%clk
0:02:17.6]} 18. Nbd4 {[%clk 0:01:50.4]} 18... R6e7 {[%clk 0:02:18]} 19. Bd3
{[%clk 0:01:40.1]} 19... Bg6 {[%clk 0:01:49.9]} 20. Bxg6 {[%clk 0:01:23.1]}
20... hxg6 {[%clk 0:01:50.8]} 21. Qd3 {[%clk 0:01:23.2]} 21... a6 {[%clk
0:01:49.3]} 22. Nf3 {[%clk 0:01:09.4]} 22... Ne5 {[%clk 0:01:43.9]} 23. Nxe5
{[%clk 0:00:57.2]} 23... Rxe5 {[%clk 0:01:44.8]} 24. Kf1 {[%clk 0:00:53]} 24...
Qe7 {[%clk 0:01:26.2]} 25. Rbd1 {[%clk 0:00:36.8]} 25... Ne4 {[%clk 0:01:24.4]}
26. a3 {[%clk 0:00:14.4]} 26... Qf6 {[%clk 0:01:18.1]} 27. f3 {[%clk 0:00:14]}
27... Qf5 {[%clk 0:00:54.8]} 28. Qd4 {[%clk 0:00:10.2]} 28... b5 {[%clk
0:00:34.2]} 29. Qb6 {[%clk 0:00:08.6]} 29... Ng5 {[%clk 0:00:19.5]} 30. Qf2
{[%clk 0:00:05]} 30... Qc2 {[%clk 0:00:17.3]} 31. Nd4 {[%clk 0:00:04.4]} 31...
Rxe1+ {[%clk 0:00:15.8]} 32. Rxe1 {[%clk 0:00:04.4]} 32... Rxe1+ {[%clk
0:00:13.7]} 33. Qxe1 {[%clk 0:00:03.1]} 33... Qxb2 {[%clk 0:00:13.7]} 34. Qe8+
{[%clk 0:00:02.5]} 34... Kh7 {[%clk 0:00:14.3]} 35. Qe7 {[%clk 0:00:02.4]} 35...
Qxc3 {[%clk 0:00:09.7]} 36. Ne2 {[%clk 0:00:02.2]} 36... Qa1+ {[%clk 0:00:09.8]}
37. Kf2 {[%clk 0:00:02.1]} 37... Qf6 {[%clk 0:00:10]} 38. Qd7 {[%clk 0:00:02.4]}
38... Ne4+ {[%clk 0:00:07.5]} 39. Kg1 {[%clk 0:00:02.6]} 39... Qb6+ {[%clk
0:00:03.6]} 40. Kh2 {[%clk 0:00:02.1]} 40... Qd6+ {[%clk 0:00:04.1]} 41. Qxd6
{[%clk 0:00:02.1]} 41... Nxd6 {[%clk 0:00:05]} 42. Kg3 {[%clk 0:00:01.9]} 42...
Nc4 {[%clk 0:00:05.1]} 43. Nf4 {[%clk 0:00:02.1]} 43... d4 {[%clk 0:00:05.2]}
0-1

[Event "Late-Titled-Tuesday-Blitz-March-26-2024"]
[Site "Chess.com"]
[Date "2024.03.26"]
[Round "8"]
[White "RianKapriaga"]
[Black "Mikhal867"]
[Result "0-1"]
[WhiteElo "2344"]
[BlackElo "2465"]
[TimeControl "180+1"]
[EndTime "15:28:25 PDT"]
[Termination "Mikhal867 won on time"]

1. d4 {[%clk 0:02:49.8]} 1... g6 {[%clk 0:02:59.5]} 2. Nf3 {[%clk 0:02:46.8]}
2... Bg7 {[%clk 0:02:59.4]} 3. e4 {[%clk 0:02:46.4]} 3... d6 {[%clk 0:02:59.6]}
4. c4 {[%clk 0:02:45.7]} 4... Nf6 {[%clk 0:02:58.9]} 5. Nc3 {[%clk 0:02:45.1]}
5... O-O {[%clk 0:02:59]} 6. Be2 {[%clk 0:02:45.2]} 6... e5 {[%clk 0:02:59.2]}
7. O-O {[%clk 0:02:45.3]} 7... Nc6 {[%clk 0:02:59.8]} 8. d5 {[%clk 0:02:44.6]}
8... Ne7 {[%clk 0:03:00.4]} 9. b4 {[%clk 0:02:39]} 9... Nh5 {[%clk 0:02:58.6]}
10. c5 {[%clk 0:02:30.7]} 10... a5 {[%clk 0:02:55.6]} 11. cxd6 {[%clk
0:02:25.2]} 11... cxd6 {[%clk 0:02:53.6]} 12. bxa5 {[%clk 0:02:23.6]} 12... f5
{[%clk 0:02:39.3]} 13. Ng5 {[%clk 0:02:21.8]} 13... Nf4 {[%clk 0:02:37.2]} 14.
Bc4 {[%clk 0:02:03.4]} 14... fxe4 {[%clk 0:02:20.1]} 15. Ngxe4 {[%clk 0:01:53]}
15... Nf5 {[%clk 0:02:15.1]} 16. Re1 {[%clk 0:01:42.2]} 16... Nd4 {[%clk
0:02:07.6]} 17. Bxf4 {[%clk 0:01:26.8]} 17... exf4 {[%clk 0:02:04.5]} 18. Rc1
{[%clk 0:01:20.4]} 18... f3 {[%clk 0:02:02.3]} 19. g3 {[%clk 0:01:18]} 19...
Rxa5 {[%clk 0:01:58.5]} 20. Bf1 {[%clk 0:01:04.3]} 20... b5 {[%clk 0:01:43.4]}
21. Rb1 {[%clk 0:00:56.6]} 21... Bg4 {[%clk 0:01:34.1]} 22. Nxb5 {[%clk
0:00:49.5]} 22... Ne2+ {[%clk 0:01:30.2]} 23. Kh1 {[%clk 0:00:41]} 23... Bf5
{[%clk 0:01:22.8]} 24. Nbxd6 {[%clk 0:00:37.6]} 24... Rxa2 {[%clk 0:01:11.1]}
25. Nxf5 {[%clk 0:00:33]} 25... gxf5 {[%clk 0:01:10.6]} 26. Nc5 {[%clk
0:00:28.6]} 26... Qf6 {[%clk 0:00:44.4]} 27. Bxe2 {[%clk 0:00:22]} 27... fxe2
{[%clk 0:00:43.6]} 28. Rxe2 {[%clk 0:00:22.6]} 28... Rxe2 {[%clk 0:00:35.6]} 29.
Qxe2 {[%clk 0:00:23.5]} 29... Qd4 {[%clk 0:00:32.7]} 30. Qe6+ {[%clk 0:00:15.1]}
30... Kh8 {[%clk 0:00:31.5]} 31. Nd7 {[%clk 0:00:13.7]} 31... Rg8 {[%clk
0:00:26.3]} 32. Kg1 {[%clk 0:00:09.4]} 32... f4 {[%clk 0:00:24.4]} 33. Re1
{[%clk 0:00:07.6]} 33... f3 {[%clk 0:00:20.3]} 34. Qe4 {[%clk 0:00:05.4]} 34...
Qc3 {[%clk 0:00:17.2]} 35. h4 {[%clk 0:00:03.5]} 35... Rd8 {[%clk 0:00:14.3]}
36. Ne5 {[%clk 0:00:03]} 36... Kg8 {[%clk 0:00:08.2]} 37. Qf5 {[%clk 0:00:02.9]}
37... Rf8 {[%clk 0:00:07]} 38. Kh2 {[%clk 0:00:03.8]} 38... Rxf5 {[%clk
0:00:06.5]} 39. Ng4 {[%clk 0:00:02.8]} 39... Rxd5 {[%clk 0:00:06.3]} 40. Re8+
{[%clk 0:00:02.2]} 40... Kf7 {[%clk 0:00:06.2]} 41. Re3 {[%clk 0:00:02]} 41...
Qxe3 {[%clk 0:00:05.3]} 0-1

[Event "Late-Titled-Tuesday-Blitz-March-26-2024"]
[Site "Chess.com"]
[Date "2024.03.26"]
[Round "8"]
[White "Slovak_fighter2000"]
[Black "AlexeiShirov"]
[Result "0-1"]
[WhiteElo "2611"]
[BlackElo "2829"]
[TimeControl "180+1"]
[EndTime "15:28:26 PDT"]
[Termination "AlexeiShirov won by resignation"]

1. d4 {[%clk 0:02:56.1]} 1... d5 {[%clk 0:02:59]} 2. Nf3 {[%clk 0:02:55.5]} 2...
Nf6 {[%clk 0:02:57.9]} 3. c4 {[%clk 0:02:55]} 3... c6 {[%clk 0:02:57.4]} 4. Nc3
{[%clk 0:02:48.9]} 4... e6 {[%clk 0:02:56.7]} 5. g3 {[%clk 0:02:42.2]} 5... dxc4
{[%clk 0:02:53.4]} 6. Bg2 {[%clk 0:02:42]} 6... b5 {[%clk 0:02:51.7]} 7. Ne5
{[%clk 0:02:39.4]} 7... a6 {[%clk 0:02:50.6]} 8. a4 {[%clk 0:02:31.8]} 8... Bb7
{[%clk 0:02:48.2]} 9. O-O {[%clk 0:02:29.4]} 9... Be7 {[%clk 0:02:46.8]} 10.
axb5 {[%clk 0:02:29.4]} 10... axb5 {[%clk 0:02:46.2]} 11. Rxa8 {[%clk
0:02:28.6]} 11... Bxa8 {[%clk 0:02:45.5]} 12. Nxb5 {[%clk 0:02:24.3]} 12... cxb5
{[%clk 0:02:45]} 13. Bxa8 {[%clk 0:02:23.9]} 13... O-O {[%clk 0:02:44.3]} 14.
Bg2 {[%clk 0:02:23]} 14... Nd5 {[%clk 0:02:34.2]} 15. e4 {[%clk 0:02:18.2]}
15... Nb4 {[%clk 0:02:33.3]} 16. d5 {[%clk 0:02:11.2]} 16... exd5 {[%clk
0:02:27.6]} 17. exd5 {[%clk 0:02:12.1]} 17... Qc7 {[%clk 0:02:19.3]} 18. Qe2
{[%clk 0:02:04.6]} 18... Bd6 {[%clk 0:02:16.2]} 19. f4 {[%clk 0:01:35.1]} 19...
Re8 {[%clk 0:02:15]} 20. Qh5 {[%clk 0:01:30.1]} 20... Nd3 {[%clk 0:02:05.6]} 21.
Nxd3 {[%clk 0:01:20.1]} 21... cxd3 {[%clk 0:02:04.6]} 22. Qf3 {[%clk 0:01:12.9]}
22... Qc2 {[%clk 0:01:58.6]} 23. Qd1 {[%clk 0:01:02.8]} 23... Na6 {[%clk
0:01:37.2]} 24. Qxc2 {[%clk 0:00:55.1]} 24... dxc2 {[%clk 0:01:36]} 25. Bf3
{[%clk 0:00:45.5]} 25... Nc5 {[%clk 0:01:26.7]} 26. Kg2 {[%clk 0:00:34.5]} 26...
Nd3 {[%clk 0:01:22.6]} 27. b3 {[%clk 0:00:30.3]} 27... Re1 {[%clk 0:01:18.3]}
28. Bd2 {[%clk 0:00:15.4]} 28... Rxf1 {[%clk 0:01:16.9]} 29. Kxf1 {[%clk
0:00:16.3]} 29... c1=Q+ {[%clk 0:01:12.9]} 30. Bxc1 {[%clk 0:00:16.7]} 30...
Nxc1 {[%clk 0:01:12.2]} 31. Bd1 {[%clk 0:00:15.6]} 31... f5 {[%clk 0:01:08.3]}
32. Bc2 {[%clk 0:00:13.8]} 32... g6 {[%clk 0:01:05]} 33. Ke1 {[%clk 0:00:14.4]}
33... Kf7 {[%clk 0:00:56.3]} 34. Kd1 {[%clk 0:00:14]} 34... Na2 {[%clk
0:00:55.2]} 35. Bd3 {[%clk 0:00:13.5]} 35... Nc3+ {[%clk 0:00:53.8]} 36. Kc2
{[%clk 0:00:13.1]} 36... b4 {[%clk 0:00:52.1]} 37. Bc4 {[%clk 0:00:13.5]} 37...
Ke7 {[%clk 0:00:50.5]} 38. Kd3 {[%clk 0:00:13.9]} 38... Bc5 {[%clk 0:00:49.2]}
39. d6+ {[%clk 0:00:10.2]} 39... Bxd6 {[%clk 0:00:48.5]} 40. Bg8 {[%clk
0:00:11.1]} 40... h6 {[%clk 0:00:47.9]} 41. h3 {[%clk 0:00:10.1]} 41... Kf6
{[%clk 0:00:46.9]} 42. Bc4 {[%clk 0:00:08.8]} 42... g5 {[%clk 0:00:46.3]} 43.
fxg5+ {[%clk 0:00:09]} 43... hxg5 {[%clk 0:00:45.7]} 44. g4 {[%clk 0:00:09.4]}
44... fxg4 {[%clk 0:00:44.9]} 45. hxg4 {[%clk 0:00:09.7]} 45... Ke5 {[%clk
0:00:44.5]} 46. Ba6 {[%clk 0:00:09.6]} 46... Ne4 {[%clk 0:00:43.2]} 47. Bc8
{[%clk 0:00:09.1]} 47... Nf6 {[%clk 0:00:41.9]} 48. Ke3 {[%clk 0:00:08.6]} 48...
Bc5+ {[%clk 0:00:41.5]} 49. Kf3 {[%clk 0:00:08.7]} 49... Kd4 {[%clk 0:00:41.3]}
50. Be6 {[%clk 0:00:08.9]} 50... Bd6 {[%clk 0:00:40.8]} 51. Bf7 {[%clk
0:00:08.7]} 51... Ne4 {[%clk 0:00:40.3]} 52. Bg8 {[%clk 0:00:08.6]} 52... Nc5
{[%clk 0:00:39.2]} 53. Bf7 {[%clk 0:00:07.6]} 53... Bf4 {[%clk 0:00:38.7]} 54.
Bg8 {[%clk 0:00:07.7]} 54... Kc3 {[%clk 0:00:38.5]} 0-1